[Event "Late-Titled-Tuesday-Blitz-May-28-2024"]
[Site "Chess.com"]
[Date "2024.05.28"]
[Round "10"]
[White "StoreySniper"]
[Black "ManMish2"]
[Result "1-0"]
[WhiteElo "2553"]
[BlackElo "2651"]
[TimeControl "180+1"]
[EndTime "15:55:41 PDT"]
[Termination "StoreySniper won by checkmate"]

1. c4 {[%clk 0:03:00.9]} 1... e5 {[%clk 0:02:59.4]} 2. g3 {[%clk 0:03:00.8]}
2... g6 {[%clk 0:02:59]} 3. Bg2 {[%clk 0:03:01.4]} 3... Bg7 {[%clk 0:02:59.1]}
4. Nc3 {[%clk 0:03:02]} 4... Ne7 {[%clk 0:02:59.4]} 5. e4 {[%clk 0:03:01.9]}
5... Nbc6 {[%clk 0:02:57.3]} 6. d3 {[%clk 0:03:02.3]} 6... Nd4 {[%clk
0:02:57.7]} 7. Nge2 {[%clk 0:03:01.9]} 7... O-O {[%clk 0:02:57.2]} 8. Nxd4
{[%clk 0:03:01.5]} 8... exd4 {[%clk 0:02:58.1]} 9. Ne2 {[%clk 0:03:00.8]} 9...
c6 {[%clk 0:02:58.1]} 10. O-O {[%clk 0:02:57]} 10... d5 {[%clk 0:02:58.3]} 11.
exd5 {[%clk 0:02:46.8]} 11... cxd5 {[%clk 0:02:59.2]} 12. c5 {[%clk 0:02:41.5]}
12... Bg4 {[%clk 0:02:56.8]} 13. h3 {[%clk 0:02:37.4]} 13... Be6 {[%clk
0:02:56.5]} 14. Nf4 {[%clk 0:02:35.4]} 14... Qd7 {[%clk 0:02:56.2]} 15. b4
{[%clk 0:02:32.6]} 15... a5 {[%clk 0:02:55.2]} 16. Bd2 {[%clk 0:02:23.6]} 16...
axb4 {[%clk 0:02:54.5]} 17. Bxb4 {[%clk 0:02:23.7]} 17... Nc6 {[%clk 0:02:55]}
18. Bd2 {[%clk 0:02:10.9]} 18... Rfe8 {[%clk 0:02:50.8]} 19. Qb3 {[%clk
0:02:06.8]} 19... Rad8 {[%clk 0:02:17.9]} 20. Rfb1 {[%clk 0:02:03.8]} 20... Re7
{[%clk 0:02:03.7]} 21. Re1 {[%clk 0:01:23.2]} 21... Be5 {[%clk 0:01:54.1]} 22.
Rab1 {[%clk 0:01:08.7]} 22... Bxf4 {[%clk 0:01:50.5]} 23. Bxf4 {[%clk
0:01:08.6]} 23... Bxh3 {[%clk 0:01:48.8]} 24. Bxh3 {[%clk 0:01:04.4]} 24...
Rxe1+ {[%clk 0:01:25.9]} 25. Rxe1 {[%clk 0:01:04.2]} 25... Qxh3 {[%clk
0:01:26.3]} 26. Qxb7 {[%clk 0:01:01.6]} 26... Qd7 {[%clk 0:01:11.8]} 27. Qxd7
{[%clk 0:00:41.4]} 27... Rxd7 {[%clk 0:01:12.7]} 28. Bh6 {[%clk 0:00:41.4]}
28... f6 {[%clk 0:01:07.6]} 29. Re6 {[%clk 0:00:36.4]} 29... Rc7 {[%clk
0:01:00.5]} 30. Rxf6 {[%clk 0:00:35.4]} 30... Rc8 {[%clk 0:01:01.1]} 31. Rd6
{[%clk 0:00:32.2]} 31... Nb4 {[%clk 0:01:00.8]} 32. a3 {[%clk 0:00:20.3]} 32...
Nxd3 {[%clk 0:01:00.8]} 33. Rxd5 {[%clk 0:00:21]} 33... Nxc5 {[%clk 0:01:00.3]}
34. Rxd4 {[%clk 0:00:20.6]} 34... Ne6 {[%clk 0:00:58.3]} 35. Re4 {[%clk
0:00:17.8]} 35... Nc5 {[%clk 0:00:58.1]} 36. Rc4 {[%clk 0:00:17.7]} 36... Rc7
{[%clk 0:00:49.7]} 37. Bf4 {[%clk 0:00:16.9]} 37... Ra7 {[%clk 0:00:44.3]} 38.
Rxc5 {[%clk 0:00:15.6]} 38... Rxa3 {[%clk 0:00:44.8]} 39. Bh6 {[%clk 0:00:11.7]}
39... Ra7 {[%clk 0:00:41.2]} 40. Be3 {[%clk 0:00:08.3]} 40... Rb7 {[%clk
0:00:40.5]} 41. Ra5 {[%clk 0:00:07.5]} 41... Kf7 {[%clk 0:00:40.9]} 42. Ra7
{[%clk 0:00:07.5]} 42... Rxa7 {[%clk 0:00:40.8]} 43. Bxa7 {[%clk 0:00:08.3]}
43... g5 {[%clk 0:00:40.4]} 44. Be3 {[%clk 0:00:09]} 44... Kg6 {[%clk
0:00:40.7]} 45. g4 {[%clk 0:00:08.6]} 45... h5 {[%clk 0:00:39.4]} 46. f3 {[%clk
0:00:08.8]} 46... h4 {[%clk 0:00:37.2]} 47. Kg2 {[%clk 0:00:08.8]} 47... Kf6
{[%clk 0:00:37.8]} 48. Kh3 {[%clk 0:00:08.7]} 48... Kg6 {[%clk 0:00:38.1]} 49.
Bd4 {[%clk 0:00:08.9]} 49... Kh6 {[%clk 0:00:37.4]} 50. Be5 {[%clk 0:00:09]}
50... Kg6 {[%clk 0:00:37.8]} 51. f4 {[%clk 0:00:09]} 51... Kh6 {[%clk
0:00:37.4]} 52. f5 {[%clk 0:00:08.5]} 52... Kh7 {[%clk 0:00:36.9]} 53. Bf6
{[%clk 0:00:07.4]} 53... Kh6 {[%clk 0:00:37.2]} 54. Be7 {[%clk 0:00:07.6]} 54...
Kh7 {[%clk 0:00:37.7]} 55. Bxg5 {[%clk 0:00:08]} 55... Kg7 {[%clk 0:00:38.6]}
56. Bxh4 {[%clk 0:00:08.4]} 56... Kf7 {[%clk 0:00:39.5]} 57. Kg3 {[%clk
0:00:08.9]} 57... Ke8 {[%clk 0:00:39.8]} 58. Kf4 {[%clk 0:00:09.8]} 58... Kd7
{[%clk 0:00:40.4]} 59. g5 {[%clk 0:00:10.4]} 59... Kc6 {[%clk 0:00:41.2]} 60. g6
{[%clk 0:00:11.1]} 60... Kb5 {[%clk 0:00:42.1]} 61. g7 {[%clk 0:00:11.5]} 61...
Kc4 {[%clk 0:00:42.7]} 62. g8=Q+ {[%clk 0:00:11.8]} 62... Kd3 {[%clk 0:00:43.4]}
63. Qd5+ {[%clk 0:00:11.9]} 63... Ke2 {[%clk 0:00:44]} 64. Ke4 {[%clk
0:00:10.8]} 64... Kf1 {[%clk 0:00:43.7]} 65. Kf3 {[%clk 0:00:09.3]} 65... Kg1
{[%clk 0:00:44.6]} 66. Qd1+ {[%clk 0:00:08.4]} 66... Kh2 {[%clk 0:00:45.5]} 67.
Qe2+ {[%clk 0:00:08.4]} 67... Kh3 {[%clk 0:00:46.4]} 68. Qg2+ {[%clk 0:00:08.9]}
68... Kxh4 {[%clk 0:00:47.1]} 69. Qg4# {[%clk 0:00:09.1]} 1-0

[Event "Late-Titled-Tuesday-Blitz-May-28-2024"]
[Site "Chess.com"]
[Date "2024.05.28"]
[Round "10"]
[White "lachesisQ"]
[Black "Vladimir_Zakhartsov"]
[Result "1/2-1/2"]
[WhiteElo "3063"]
[BlackElo "2880"]
[TimeControl "180+1"]
[EndTime "15:55:44 PDT"]
[Termination "Game drawn by stalemate"]

1. e4 {[%clk 0:03:00.9]} 1... c5 {[%clk 0:02:55.7]} 2. Nf3 {[%clk 0:03:00.4]}
2... d6 {[%clk 0:02:55.1]} 3. d4 {[%clk 0:03:00.6]} 3... Nf6 {[%clk 0:02:55.4]}
4. Nc3 {[%clk 0:03:00.6]} 4... cxd4 {[%clk 0:02:55.9]} 5. Nxd4 {[%clk
0:03:01.5]} 5... g6 {[%clk 0:02:56.4]} 6. f3 {[%clk 0:03:00.9]} 6... h5 {[%clk
0:02:54.3]} 7. Be3 {[%clk 0:03:00.6]} 7... Bg7 {[%clk 0:02:53.4]} 8. Qd2 {[%clk
0:03:00.5]} 8... a6 {[%clk 0:02:52.8]} 9. Bc4 {[%clk 0:02:59.3]} 9... b5 {[%clk
0:02:52.4]} 10. Bb3 {[%clk 0:02:57.7]} 10... Bb7 {[%clk 0:02:50.1]} 11. O-O-O
{[%clk 0:02:55.7]} 11... Nbd7 {[%clk 0:02:49.9]} 12. Rhe1 {[%clk 0:02:55.4]}
12... Rc8 {[%clk 0:02:46.5]} 13. Kb1 {[%clk 0:02:55.4]} 13... Qc7 {[%clk
0:02:43.3]} 14. Nd5 {[%clk 0:02:53.2]} 14... Bxd5 {[%clk 0:02:37.4]} 15. exd5
{[%clk 0:02:45.1]} 15... Nb6 {[%clk 0:02:36.9]} 16. Bg5 {[%clk 0:02:22.2]} 16...
Nfxd5 {[%clk 0:02:17.3]} 17. f4 {[%clk 0:02:19.2]} 17... O-O {[%clk 0:01:51.4]}
18. f5 {[%clk 0:02:19.3]} 18... Nc4 {[%clk 0:01:51.8]} 19. Qd3 {[%clk
0:02:03.3]} 19... Nb4 {[%clk 0:01:34.6]} 20. Qe2 {[%clk 0:01:38.8]} 20... Nc6
{[%clk 0:01:11.8]} 21. Nxc6 {[%clk 0:01:29.5]} 21... Qxc6 {[%clk 0:01:12]} 22.
fxg6 {[%clk 0:01:29.9]} 22... fxg6 {[%clk 0:01:07.7]} 23. Bxe7 {[%clk 0:01:22]}
23... Rf7 {[%clk 0:01:01.6]} 24. Bxc4 {[%clk 0:00:18.9]} 24... bxc4 {[%clk
0:00:59]} 25. Bxd6 {[%clk 0:00:18.9]} 25... Rb7 {[%clk 0:00:44.8]} 26. Ba3
{[%clk 0:00:09.1]} 26... Bxb2 {[%clk 0:00:19]} 27. Bxb2 {[%clk 0:00:08.5]} 27...
c3 {[%clk 0:00:19.6]} 28. Qe6+ {[%clk 0:00:08.8]} 28... Qxe6 {[%clk 0:00:20.2]}
29. Rxe6 {[%clk 0:00:09.7]} 29... Rxb2+ {[%clk 0:00:20.2]} 30. Ka1 {[%clk
0:00:10.2]} 30... Rxc2 {[%clk 0:00:15.4]} 31. Rxg6+ {[%clk 0:00:10]} 31... Kf7
{[%clk 0:00:15.1]} 32. Rxa6 {[%clk 0:00:09.1]} 32... Rxg2 {[%clk 0:00:12.2]} 33.
h4 {[%clk 0:00:08.6]} 33... Rc7 {[%clk 0:00:08.1]} 34. Ra5 {[%clk 0:00:08.1]}
34... Kg6 {[%clk 0:00:06.7]} 35. Rc1 {[%clk 0:00:08.5]} 35... Rg4 {[%clk
0:00:06]} 36. Ra3 {[%clk 0:00:08.1]} 36... Rgc4 {[%clk 0:00:05.1]} 37. Rb3
{[%clk 0:00:04.6]} 37... Kf5 {[%clk 0:00:05.3]} 38. Rb5+ {[%clk 0:00:05]} 38...
Kg4 {[%clk 0:00:04.3]} 39. Rg1+ {[%clk 0:00:04.6]} 39... Kxh4 {[%clk 0:00:04.2]}
40. Rh1+ {[%clk 0:00:05.1]} 40... Kg3 {[%clk 0:00:04.2]} 41. Rbxh5 {[%clk
0:00:06]} 41... c2 {[%clk 0:00:02.2]} 42. R5h3+ {[%clk 0:00:06]} 42... Kg4
{[%clk 0:00:02.3]} 43. Rh4+ {[%clk 0:00:05.9]} 43... Kg5 {[%clk 0:00:02.6]} 44.
Rxc4 {[%clk 0:00:06.8]} 44... Rxc4 {[%clk 0:00:03.1]} 45. Kb2 {[%clk 0:00:06.7]}
45... Kf5 {[%clk 0:00:03.3]} 46. Rc1 {[%clk 0:00:06.2]} 46... Ke5 {[%clk
0:00:03.3]} 47. Kb3 {[%clk 0:00:06.9]} 47... Rc5 {[%clk 0:00:03.3]} 48. a3
{[%clk 0:00:07.6]} 48... Kd6 {[%clk 0:00:03.5]} 49. Rxc2 {[%clk 0:00:07.5]}
49... Rxc2 {[%clk 0:00:03.6]} 50. Kxc2 {[%clk 0:00:08.2]} 50... Kc6 {[%clk
0:00:04.2]} 51. Kb3 {[%clk 0:00:09.1]} 51... Kb7 {[%clk 0:00:04.9]} 52. a4
{[%clk 0:00:09.9]} 52... Ka8 {[%clk 0:00:05.8]} 53. Ka3 {[%clk 0:00:10.8]} 53...
Kb8 {[%clk 0:00:06.7]} 54. Kb4 {[%clk 0:00:11.7]} 54... Ka8 {[%clk 0:00:07.5]}
55. a5 {[%clk 0:00:12.6]} 55... Kb8 {[%clk 0:00:08.3]} 56. Kb5 {[%clk
0:00:13.5]} 56... Ka8 {[%clk 0:00:09.2]} 57. a6 {[%clk 0:00:14.4]} 57... Kb8
{[%clk 0:00:09.9]} 58. Kb6 {[%clk 0:00:15.3]} 58... Ka8 {[%clk 0:00:10.8]} 59.
a7 {[%clk 0:00:16.2]} 1/2-1/2

[Event "Late-Titled-Tuesday-Blitz-May-28-2024"]
[Site "Chess.com"]
[Date "2024.05.28"]
[Round "10"]
[White "manitodeplomo"]
[Black "topce"]
[Result "1-0"]
[WhiteElo "2535"]
[BlackElo "2409"]
[TimeControl "180+1"]
[EndTime "15:55:52 PDT"]
[Termination "manitodeplomo won on time"]

1. d4 {[%clk 0:03:00.9]} 1... Nf6 {[%clk 0:02:57.3]} 2. c4 {[%clk 0:03:01.2]}
2... e6 {[%clk 0:02:56.5]} 3. Nf3 {[%clk 0:03:01.5]} 3... c5 {[%clk 0:02:56]} 4.
d5 {[%clk 0:03:00.8]} 4... d6 {[%clk 0:02:53.6]} 5. Nc3 {[%clk 0:02:58.6]} 5...
exd5 {[%clk 0:02:51.9]} 6. cxd5 {[%clk 0:02:57.8]} 6... g6 {[%clk 0:02:51.2]} 7.
e4 {[%clk 0:02:57]} 7... Bg7 {[%clk 0:02:51.4]} 8. h3 {[%clk 0:02:56.2]} 8...
O-O {[%clk 0:02:51.7]} 9. Bd3 {[%clk 0:02:56.6]} 9... b5 {[%clk 0:02:51]} 10.
Nxb5 {[%clk 0:02:56.3]} 10... Nxe4 {[%clk 0:02:41.3]} 11. Bxe4 {[%clk
0:02:55.5]} 11... Ba6 {[%clk 0:02:35.6]} 12. a4 {[%clk 0:02:16]} 12... Re8
{[%clk 0:02:32.8]} 13. O-O {[%clk 0:02:13.9]} 13... Rxe4 {[%clk 0:02:29.3]} 14.
Ng5 {[%clk 0:02:13.3]} 14... Rb4 {[%clk 0:02:19.9]} 15. Qf3 {[%clk 0:02:10]}
15... Bf6 {[%clk 0:02:00.9]} 16. Ne4 {[%clk 0:02:04.8]} 16... Be7 {[%clk
0:01:57.3]} 17. Bd2 {[%clk 0:01:56]} 17... Bxb5 {[%clk 0:01:54.6]} 18. axb5
{[%clk 0:01:54.5]} 18... Rxb5 {[%clk 0:01:50.2]} 19. Bc3 {[%clk 0:01:48.7]}
19... Nd7 {[%clk 0:01:50]} 20. Rfe1 {[%clk 0:01:39.5]} 20... f5 {[%clk
0:01:35.6]} 21. Nd2 {[%clk 0:01:30.6]} 21... Bf6 {[%clk 0:01:31.3]} 22. Qe2
{[%clk 0:01:25.2]} 22... Bxc3 {[%clk 0:01:06]} 23. bxc3 {[%clk 0:01:26.1]} 23...
Rb6 {[%clk 0:01:01]} 24. Nc4 {[%clk 0:01:20.2]} 24... Ne5 {[%clk 0:00:46.3]} 25.
Nxb6 {[%clk 0:01:14.1]} 25... axb6 {[%clk 0:00:47.2]} 26. f4 {[%clk 0:01:12.2]}
26... Nf7 {[%clk 0:00:41.1]} 27. Qe6 {[%clk 0:01:07.6]} 27... b5 {[%clk
0:00:36.7]} 28. Rxa8 {[%clk 0:01:02.6]} 28... Qxa8 {[%clk 0:00:35.7]} 29. Qf6
{[%clk 0:00:56.9]} 29... b4 {[%clk 0:00:27.3]} 30. cxb4 {[%clk 0:00:49.8]} 30...
cxb4 {[%clk 0:00:27.2]} 31. Re7 {[%clk 0:00:49.8]} 31... Qf8 {[%clk 0:00:21.3]}
32. Rb7 {[%clk 0:00:48.5]} 32... Nd8 {[%clk 0:00:14.1]} 33. Qxf8+ {[%clk
0:00:44.2]} 33... Kxf8 {[%clk 0:00:15]} 34. Rxb4 {[%clk 0:00:44.4]} 34... Nf7
{[%clk 0:00:15.1]} 35. Kf2 {[%clk 0:00:43.6]} 35... Kg7 {[%clk 0:00:15.2]} 36.
Ke3 {[%clk 0:00:43.9]} 36... Kf6 {[%clk 0:00:15.6]} 37. Kd4 {[%clk 0:00:44]}
37... h6 {[%clk 0:00:15.7]} 38. g3 {[%clk 0:00:43.9]} 38... g5 {[%clk
0:00:15.6]} 39. Rb7 {[%clk 0:00:43.2]} 39... g4 {[%clk 0:00:12.8]} 40. h4 {[%clk
0:00:40.5]} 40... h5 {[%clk 0:00:12.3]} 41. Kc4 {[%clk 0:00:39.7]} 41... Kg7
{[%clk 0:00:09.2]} 42. Kb5 {[%clk 0:00:39.4]} 42... Kf8 {[%clk 0:00:09.5]} 43.
Kb6 {[%clk 0:00:38.1]} 43... Ke8 {[%clk 0:00:09.8]} 44. Rc7 {[%clk 0:00:33.6]}
44... Kf8 {[%clk 0:00:04.9]} 45. Kc6 {[%clk 0:00:33.1]} 45... Ke8 {[%clk
0:00:05.3]} 46. Rd7 {[%clk 0:00:30.5]} 46... Ne5+ {[%clk 0:00:03.3]} 47. fxe5
{[%clk 0:00:29.9]} 47... dxe5 {[%clk 0:00:04.2]} 48. d6 {[%clk 0:00:29.6]} 48...
f4 {[%clk 0:00:03.7]} 49. Re7+ {[%clk 0:00:28.9]} 49... Kf8 {[%clk 0:00:04]} 50.
Rxe5 {[%clk 0:00:28.9]} 50... fxg3 {[%clk 0:00:03.8]} 51. Re3 {[%clk 0:00:28.4]}
51... g2 {[%clk 0:00:04.7]} 52. Rg3 {[%clk 0:00:28.5]} 52... Kf7 {[%clk
0:00:04.1]} 53. Rxg2 {[%clk 0:00:28.6]} 53... Kf6 {[%clk 0:00:05]} 54. d7 {[%clk
0:00:28.7]} 54... Kf5 {[%clk 0:00:05.9]} 55. d8=Q {[%clk 0:00:28.9]} 55... Kf4
{[%clk 0:00:06.8]} 56. Qd6+ {[%clk 0:00:26.8]} 56... Kf3 {[%clk 0:00:07.7]} 57.
Qg3+ {[%clk 0:00:26.3]} 57... Ke4 {[%clk 0:00:07.5]} 58. Re2+ {[%clk 0:00:26.1]}
58... Kd4 {[%clk 0:00:06.7]} 59. Qe5+ {[%clk 0:00:25.3]} 59... Kc4 {[%clk
0:00:07.6]} 60. Qe4+ {[%clk 0:00:23.3]} 60... Kc3 {[%clk 0:00:07.3]} 61. Rc2+
{[%clk 0:00:23]} 61... Kb3 {[%clk 0:00:07.2]} 62. Qc4+ {[%clk 0:00:22.4]} 1-0

[Event "Late-Titled-Tuesday-Blitz-May-28-2024"]
[Site "Chess.com"]
[Date "2024.05.28"]
[Round "10"]
[White "Denmark2015"]
[Black "ural58"]
[Result "1-0"]
[WhiteElo "2562"]
[BlackElo "2422"]
[TimeControl "180+1"]
[EndTime "15:55:55 PDT"]
[Termination "Denmark2015 won by resignation"]

1. d4 {[%clk 0:03:00.9]} 1... d5 {[%clk 0:02:58.5]} 2. c4 {[%clk 0:03:01]} 2...
e5 {[%clk 0:02:57.9]} 3. dxe5 {[%clk 0:03:01]} 3... d4 {[%clk 0:02:57.3]} 4. Nf3
{[%clk 0:03:01.3]} 4... Nc6 {[%clk 0:02:57]} 5. a3 {[%clk 0:03:01.7]} 5... g6
{[%clk 0:02:56.3]} 6. b4 {[%clk 0:02:58.8]} 6... Bg7 {[%clk 0:02:55.1]} 7. Bb2
{[%clk 0:02:57.7]} 7... Nh6 {[%clk 0:02:54.2]} 8. Nbd2 {[%clk 0:02:50.1]} 8...
Nf5 {[%clk 0:02:52.2]} 9. g4 {[%clk 0:02:42]} 9... Nh4 {[%clk 0:02:50.2]} 10. h3
{[%clk 0:02:36.2]} 10... h5 {[%clk 0:02:37.1]} 11. Nxh4 {[%clk 0:02:29.7]} 11...
Qxh4 {[%clk 0:02:36.6]} 12. Nf3 {[%clk 0:02:30.3]} 12... Qe7 {[%clk 0:02:35.9]}
13. gxh5 {[%clk 0:02:08.8]} 13... Nxe5 {[%clk 0:02:21.5]} 14. Nxe5 {[%clk
0:02:03.8]} 14... Qxe5 {[%clk 0:02:20.7]} 15. e3 {[%clk 0:01:57.7]} 15... Qxh5
{[%clk 0:01:57.6]} 16. Bxd4 {[%clk 0:01:51.4]} 16... Bxd4 {[%clk 0:01:51.8]} 17.
Qxd4 {[%clk 0:01:44.7]} 17... Be6 {[%clk 0:01:39.6]} 18. Be2 {[%clk 0:01:42.4]}
18... Qh4 {[%clk 0:01:36.9]} 19. Qxh4 {[%clk 0:01:02.1]} 19... Rxh4 {[%clk
0:01:35.6]} 20. f4 {[%clk 0:00:56.7]} 20... O-O-O {[%clk 0:01:28.9]} 21. Rd1
{[%clk 0:00:49.3]} 21... Rdh8 {[%clk 0:01:27.7]} 22. Kf2 {[%clk 0:00:45.8]}
22... Bxh3 {[%clk 0:01:26.8]} 23. Rxh3 {[%clk 0:00:44.1]} 23... Rxh3 {[%clk
0:01:22.2]} 24. Bg4+ {[%clk 0:00:44.3]} 24... f5 {[%clk 0:01:21.9]} 25. Bxh3
{[%clk 0:00:43.4]} 25... Rxh3 {[%clk 0:01:22.5]} 26. Rd3 {[%clk 0:00:37.6]}
26... c5 {[%clk 0:01:21]} 27. bxc5 {[%clk 0:00:30.2]} 27... Kc7 {[%clk
0:01:20.8]} 28. Rd6 {[%clk 0:00:30.2]} 28... Rh2+ {[%clk 0:01:18.9]} 29. Kf3
{[%clk 0:00:30.1]} 29... Rh3+ {[%clk 0:01:18.8]} 30. Ke2 {[%clk 0:00:29.3]}
30... Rg3 {[%clk 0:01:18.7]} 31. Kd3 {[%clk 0:00:28.1]} 31... Rg1 {[%clk
0:01:17.1]} 32. Kc3 {[%clk 0:00:23.2]} 32... a5 {[%clk 0:01:16.5]} 33. Rf6
{[%clk 0:00:21.5]} 33... Re1 {[%clk 0:01:14.9]} 34. Kd2 {[%clk 0:00:21.4]} 34...
Rg1 {[%clk 0:01:11.3]} 35. Kd3 {[%clk 0:00:21.2]} 35... a4 {[%clk 0:01:10.3]}
36. Kd4 {[%clk 0:00:20]} 36... Rd1+ {[%clk 0:01:05.6]} 37. Kc3 {[%clk
0:00:19.5]} 37... Rb1 {[%clk 0:01:01.6]} 38. Rxg6 {[%clk 0:00:17.7]} 38... Rb3+
{[%clk 0:01:02.2]} 39. Kd4 {[%clk 0:00:18.6]} 39... Rxa3 {[%clk 0:01:02.2]} 40.
e4 {[%clk 0:00:14.7]} 40... fxe4 {[%clk 0:01:01.7]} 41. f5 {[%clk 0:00:15.1]}
41... Rf3 {[%clk 0:01:00.5]} 42. Kxe4 {[%clk 0:00:14.9]} 42... Rf1 {[%clk
0:01:00.4]} 43. Rg3 {[%clk 0:00:14.8]} 43... Kc6 {[%clk 0:00:59.8]} 44. Ra3
{[%clk 0:00:14.3]} 44... Kxc5 {[%clk 0:00:52.7]} 45. Rxa4 {[%clk 0:00:14.1]}
45... b6 {[%clk 0:00:44.6]} 46. Ke5 {[%clk 0:00:14.3]} 46... Re1+ {[%clk
0:00:43.3]} 47. Kf6 {[%clk 0:00:14.6]} 47... Kd6 {[%clk 0:00:35.4]} 48. Rb4
{[%clk 0:00:14.2]} 48... Kc5 {[%clk 0:00:34.1]} 49. Rb5+ {[%clk 0:00:14.5]}
49... Kc6 {[%clk 0:00:34.3]} 50. Kf7 {[%clk 0:00:14.5]} 50... Re4 {[%clk
0:00:34]} 51. Rb4 {[%clk 0:00:14.1]} 51... Kc5 {[%clk 0:00:32.7]} 52. Rb5+
{[%clk 0:00:14.5]} 52... Kc6 {[%clk 0:00:32.8]} 53. f6 {[%clk 0:00:13.4]} 53...
Rxc4 {[%clk 0:00:31.9]} 54. Rf5 {[%clk 0:00:14.1]} 54... Ra4 {[%clk 0:00:28.1]}
55. Ke6 {[%clk 0:00:12.9]} 55... Re4+ {[%clk 0:00:24.4]} 56. Re5 {[%clk
0:00:13.2]} 56... Rf4 {[%clk 0:00:23.5]} 57. f7 {[%clk 0:00:13]} 57... b5 {[%clk
0:00:09.9]} 58. Rf5 {[%clk 0:00:13.3]} 58... Re4+ {[%clk 0:00:10.4]} 59. Kf6
{[%clk 0:00:13.8]} 1-0

[Event "Late-Titled-Tuesday-Blitz-May-28-2024"]
[Site "Chess.com"]
[Date "2024.05.28"]
[Round "10"]
[White "Grebnev_A"]
[Black "rezamahdavi2008"]
[Result "1/2-1/2"]
[WhiteElo "2697"]
[BlackElo "2991"]
[TimeControl "180+1"]
[EndTime "15:56:01 PDT"]
[Termination "Game drawn by repetition"]

1. Nf3 {[%clk 0:03:00.9]} 1... Nf6 {[%clk 0:02:58.9]} 2. c4 {[%clk 0:03:00.9]}
2... e6 {[%clk 0:02:57.2]} 3. Nc3 {[%clk 0:03:00.7]} 3... d5 {[%clk 0:02:57.8]}
4. e3 {[%clk 0:03:00.8]} 4... Be7 {[%clk 0:02:57.3]} 5. b3 {[%clk 0:03:00.5]}
5... dxc4 {[%clk 0:02:57.9]} 6. Bxc4 {[%clk 0:03:00.2]} 6... c5 {[%clk
0:02:56.7]} 7. O-O {[%clk 0:02:59.9]} 7... a6 {[%clk 0:02:56.8]} 8. d4 {[%clk
0:02:59.5]} 8... b5 {[%clk 0:02:56.2]} 9. Be2 {[%clk 0:02:59.8]} 9... Bb7 {[%clk
0:02:56.4]} 10. dxc5 {[%clk 0:03:00.2]} 10... Qxd1 {[%clk 0:02:54.4]} 11. Rxd1
{[%clk 0:03:01.1]} 11... Bxc5 {[%clk 0:02:55.2]} 12. Bb2 {[%clk 0:02:58.4]}
12... O-O {[%clk 0:02:55.5]} 13. Nd2 {[%clk 0:02:58.8]} 13... Rd8 {[%clk
0:02:53.6]} 14. Bf3 {[%clk 0:02:58.6]} 14... Bxf3 {[%clk 0:02:53.6]} 15. Nxf3
{[%clk 0:02:59.5]} 15... Nc6 {[%clk 0:02:53.9]} 16. Kf1 {[%clk 0:02:57.8]} 16...
Be7 {[%clk 0:02:48]} 17. Ke2 {[%clk 0:02:56.2]} 17... Kf8 {[%clk 0:02:48.5]} 18.
Nd2 {[%clk 0:02:53.1]} 18... Ke8 {[%clk 0:02:48.1]} 19. Nce4 {[%clk 0:02:53.1]}
19... Nxe4 {[%clk 0:02:44.5]} 20. Nxe4 {[%clk 0:02:54]} 20... f6 {[%clk
0:02:45.4]} 21. Rxd8+ {[%clk 0:02:52.7]} 21... Rxd8 {[%clk 0:02:46.3]} 22. Bc3
{[%clk 0:02:36.4]} 22... Ba3 {[%clk 0:02:39]} 23. Rd1 {[%clk 0:02:33.6]} 23...
Rxd1 {[%clk 0:02:38.9]} 24. Kxd1 {[%clk 0:02:34.5]} 24... Kd7 {[%clk 0:02:38.5]}
25. f3 {[%clk 0:02:30.9]} 25... e5 {[%clk 0:02:38.4]} 26. Nf2 {[%clk 0:02:30.7]}
26... Ke6 {[%clk 0:02:38.6]} 27. e4 {[%clk 0:02:29.2]} 27... Bc5 {[%clk
0:02:26.1]} 28. Nd3 {[%clk 0:02:29.1]} 28... Bb6 {[%clk 0:02:25.2]} 29. g4
{[%clk 0:02:27.1]} 29... g6 {[%clk 0:02:23.4]} 30. h3 {[%clk 0:02:25]} 30... h5
{[%clk 0:02:19.1]} 31. Ke2 {[%clk 0:02:24.3]} 31... Bd4 {[%clk 0:02:16]} 32. Bd2
{[%clk 0:02:08.3]} 32... Kd6 {[%clk 0:02:05]} 33. gxh5 {[%clk 0:02:02.6]} 33...
gxh5 {[%clk 0:02:05.9]} 34. f4 {[%clk 0:02:03]} 34... Bb6 {[%clk 0:02:02.6]} 35.
Bc3 {[%clk 0:02:03.1]} 35... Bd4 {[%clk 0:02:01.8]} 36. fxe5+ {[%clk 0:02:00.2]}
36... fxe5 {[%clk 0:01:59.4]} 37. Bd2 {[%clk 0:01:59.9]} 37... Bb6 {[%clk
0:01:59]} 38. Kf3 {[%clk 0:01:51.8]} 38... Nd4+ {[%clk 0:01:55.7]} 39. Kg3
{[%clk 0:01:50.7]} 39... Ke6 {[%clk 0:01:51.2]} 40. Bb4 {[%clk 0:01:45.4]} 40...
a5 {[%clk 0:01:42]} 41. Bc5 {[%clk 0:01:34.9]} 41... Bxc5 {[%clk 0:01:24.8]} 42.
Nxc5+ {[%clk 0:01:35.8]} 42... Kd6 {[%clk 0:01:15.4]} 43. Nd3 {[%clk 0:01:21]}
43... Ne2+ {[%clk 0:01:11.7]} 44. Kh4 {[%clk 0:01:18.2]} 44... Nf4 {[%clk
0:01:07]} 45. Ne1 {[%clk 0:01:14]} 45... Kc5 {[%clk 0:00:56.8]} 46. Nf3 {[%clk
0:01:13.6]} 46... a4 {[%clk 0:00:39.7]} 47. bxa4 {[%clk 0:01:09.6]} 47... bxa4
{[%clk 0:00:40.6]} 48. Nxe5 {[%clk 0:01:07.5]} 48... Kd4 {[%clk 0:00:36.7]} 49.
Nd7 {[%clk 0:01:07.2]} 49... a3 {[%clk 0:00:28.8]} 50. e5 {[%clk 0:01:07]} 50...
Kd5 {[%clk 0:00:29.2]} 51. Nb6+ {[%clk 0:00:55.4]} 51... Kc5 {[%clk 0:00:26.6]}
52. Nd7+ {[%clk 0:00:44]} 52... Kd5 {[%clk 0:00:27.1]} 53. Kg5 {[%clk
0:00:31.4]} 53... Nxh3+ {[%clk 0:00:24.2]} 54. Kf5 {[%clk 0:00:31.8]} 54... Nf2
{[%clk 0:00:20.3]} 55. Nf6+ {[%clk 0:00:29.9]} 55... Kc6 {[%clk 0:00:17.1]} 56.
Nxh5 {[%clk 0:00:26.8]} 56... Nd3 {[%clk 0:00:17]} 57. e6 {[%clk 0:00:26]} 57...
Kd6 {[%clk 0:00:12]} 58. Kf6 {[%clk 0:00:24.8]} 58... Ne5 {[%clk 0:00:12.6]} 59.
e7 {[%clk 0:00:19.5]} 59... Nd7+ {[%clk 0:00:12.2]} 60. Kf7 {[%clk 0:00:19.5]}
60... Ne5+ {[%clk 0:00:12.8]} 61. Kf6 {[%clk 0:00:15.9]} 61... Nd7+ {[%clk
0:00:13.4]} 62. Kf7 {[%clk 0:00:16.4]} 62... Ne5+ {[%clk 0:00:13.9]} 63. Kf6
{[%clk 0:00:16.6]} 1/2-1/2